lending/lending_fUSD_20260104
["ID","MTS","AMOUNT","RATE_DAILY","PERIOD"]
[400388423,1767490238335,-5374.37954295,0.00036833,2]
[400388425,1767490238345,-299.99,0.00036833,30]
[400388427,1767490238355,-151.0,0.00036892,14]
[400388429,1767490238365,-161.57536375,0.00036894,2]
[400388431,1767490238376,-300.0,0.00036894,10]
[400388433,1767490238386,-157.53838756,0.00036894,10]
[400388434,1767490238396,-445.29650933,0.00036894,15]
[400388436,1767490238406,-155.59408225,0.00036894,15]
[400388438,1767490238417,-500.0,0.00036894,15]
[400388440,1767490238426,-500.0,0.00036894,15]
[400388442,1767490238436,-391.04248427,0.00036894,15]
[400388444,1767490238445,-85824.95052155,0.00036895,2]
[400388446,1767490238457,-919.38,0.00036895,2]
[400388473,1767490238870,292.31131386,0.00043211,120]
[400388537,1767490240127,271.62356664,0.00043211,120]
[400388538,1767490240188,-511.302599,0.00036895,2]
[400388539,1767490242551,164.48763144,0.00043211,120]
[400388547,1767490243487,500.0,0.00043211,120]
[400388548,1767490243798,270.35435066,0.00043211,120]
[400388549,1767490244312,-151.0,0.00026311,2]
[400388550,1767490244322,-20253.9331375,0.00036895,2]
[400388558,1767490246356,-151.0,0.00028008,2]
[400388559,1767490246366,-4453.95,0.00036895,2]
[400388563,1767490246789,155.63274438,0.00043211,120]
[400388564,1767490247419,157.42144307,0.00043211,120]
[400388565,1767490251816,339.28395087,0.00043211,120]
[400388566,1767490252058,260.12087009,0.00043211,120]
[400388568,1767490253688,239.9373683,0.00043211,120]
[400388569,1767490258046,256.96749242,0.00043211,120]
[400388570,1767490259002,150.54539284,0.00043211,120]
[400388571,1767490259809,204.37578507,0.00043211,120]
[400388572,1767490260337,500.0,0.00043211,120]
[400388573,1767490261407,157.97114603,0.00043211,120]
[400388574,1767490264924,157.75541682,0.00043211,120]
[400388575,1767490266411,302.91016665,0.00030808,120]
[400388576,1767490266992,302.62208449,0.00043211,120]
[400388577,1767490267103,600.0,0.00030808,120]
[400388578,1767490267230,453.81882491,0.00032451,120]
[400388579,1767490267848,195.0,0.00030808,120]
[400388580,1767490267946,195.0,0.00032451,120]
[400388581,1767490269030,2500.0,0.00030808,120]
[400388582,1767490269209,542.80216126,0.00032451,120]
[400388583,1767490269349,168.56523007,0.00043211,120]
[400388584,1767490271618,164.60579784,0.00043211,120]
[400388585,1767490271870,390.42324622,0.00043211,120]
[400388586,1767490278095,232.77595803,0.00043211,120]
[400388587,1767490287011,157.84323401,0.00043211,120]
[400388588,1767490288656,286.34422155,0.00043211,120]
[400388589,1767490289970,173.84942259,0.00043211,120]
[400388590,1767490291303,226.48599674,0.00043211,120]
[400388591,1767490292253,183.5238857,0.00043211,120]
[400388592,1767490294054,184.75694556,0.00043211,120]
[400388593,1767490295227,500.0,0.00043211,120]
[400388594,1767490295467,151.31118075,0.00043211,120]
[400388595,1767490295513,151.0,0.0002,2]
[400388596,1767490295538,151.0,0.0002,2]
[400388597,1767490295562,201.89175405,0.0002,2]
[400388598,1767490304384,185.00094995,0.00043211,120]
[400388599,1767490306224,226.84964229,0.00043211,120]
[400388600,1767490306631,177.70604711,0.00043211,120]
[400388601,1767490308070,169.93833943,0.00043211,120]
[400388602,1767490309653,453.3034,0.00043211,120]
[400388603,1767490310013,156.03909149,0.00043211,120]
[400388604,1767490313643,175.9325678,0.00043211,120]
[400388605,1767490315760,170.55121444,0.00043211,120]
[400388606,1767490319407,194.57308383,0.00043211,120]
[400388607,1767490320713,593.55191833,0.00043211,60]
[400388608,1767490324062,167.06891278,0.00043211,120]
[400388609,1767490325222,165.90415376,0.00043211,120]
[400388610,1767490327063,210.18101862,0.00043211,120]
[400388611,1767490328897,254.85652612,0.00043211,120]
[400388612,1767490330241,171.85106735,0.00043211,120]
[400388613,1767490333450,200.72979151,0.00043211,120]
[400388614,1767490335578,193.12872114,0.00043211,120]
[400388615,1767490338240,154.36586153,0.00043211,120]
[400388616,1767490339569,500.0,0.00043211,120]
[400388617,1767490339803,500.0,0.00043211,120]
[400388618,1767490340040,555.89073562,0.00043211,120]
[400388619,1767490341350,183.57713893,0.00043211,120]
[400388620,1767490341417,247.12902456,0.00043211,120]
[400388621,1767490343225,180.43617613,0.00043211,120]
[400388622,1767490344214,192.16058,0.00043211,120]
[400388623,1767490345212,218.22113881,0.00043211,120]
[400388624,1767490346252,163.22512813,0.00043211,120]
[400388625,1767490350074,240.0453758,0.00043211,120]
[400388626,1767490351581,310.80356172,0.00043211,120]
[400388627,1767490354047,162.8131473,0.00043211,120]
[400388628,1767490354794,162.96399718,0.00043211,120]
[400388629,1767490357240,198.38213721,0.00043211,120]
[400388630,1767490357687,216.08411063,0.00043211,120]
[400388631,1767490357725,316.59581093,0.00043211,120]
[400388632,1767490358857,318.37030661,0.00043211,120]
[400388633,1767490359771,245.69011826,0.00043211,120]
[400388634,1767490360100,2004.1536271,0.00043211,120]
[400388635,1767490361729,173.55620845,0.00043211,120]
[400388636,1767490362566,389.65169489,0.00043211,120]
[400388637,1767490362722,208.78879432,0.00043211,120]
[400388638,1767490363251,294.155768,0.00043211,120]
[400388639,1767490364546,369.40712663,0.00043211,120]
[400388640,1767490365243,209.98828996,0.00043211,120]
[400388641,1767490367250,393.44660827,0.00043211,120]
[400388642,1767490367362,500.0,0.00043211,120]
[400388643,1767490367622,630.01092155,0.00043211,120]
[400388644,1767490370578,180.17904715,0.00043211,120]
[400388645,1767490375903,483.96218879,0.00043211,120]
[400388646,1767490377935,209.17415816,0.00043211,120]
[400388647,1767490378338,185.73817714,0.00043211,120]
[400388648,1767490378389,164.75997839,0.00043211,120]
[400388649,1767490379912,500.0,0.00043211,120]
[400388650,1767490380161,360.93848644,0.00043211,120]
[400388651,1767490380322,197.83405218,0.00043211,120]
[400388652,1767490381458,500.0,0.00043211,120]
[400388653,1767490381688,558.65324001,0.00043211,120]
[400388654,1767490383504,154.26615285,0.00043211,120]
[400388655,1767490383546,194.79629418,0.00022,120]
[400388656,1767490384207,303.82191056,0.00043211,120]
[400388657,1767490386305,157.77524941,0.00043211,120]
[400388658,1767490387720,177.39567491,0.00043211,120]
[400388659,1767490391294,296.08762548,0.00043211,120]
[400388660,1767490393910,247.13086581,0.00043211,120]
[400388661,1767490396151,162.27356936,0.00043211,120]
[400388662,1767490396907,13534.12189542,0.0002,30]
[400388664,1767490399093,181.08817021,0.00043211,120]
[400388665,1767490399133,282.91852755,0.00043211,120]
[400388666,1767490402801,169.35579009,0.00043211,120]
[400388667,1767490404306,165.76785912,0.00043211,120]
[400388668,1767490405024,260.92544592,0.00043211,120]
[400388669,1767490406129,170.77547319,0.00043211,120]
[400388670,1767490408298,235.65647324,0.00043211,120]
[400388671,1767490409490,500.0,0.00043211,120]
[400388672,1767490409725,307.76901219,0.00043211,120]
[400388673,1767490410367,179.6809597,0.00043211,120]
[400388674,1767490412890,167.46373501,0.00043211,120]
[400388675,1767490413767,152.27519113,0.00043211,120]
[400388676,1767490416132,193.17412162,0.00043211,120]
[400388677,1767490416422,155.8992764,0.00043211,120]
[400388678,1767490417616,177.35733709,0.00043211,120]
[400388679,1767490417970,203.03415662,0.00043211,120]
[400388680,1767490419510,192.29491943,0.00043211,120]
[400388681,1767490422582,292.8281059,0.00043211,120]
[400388682,1767490424497,160.49796195,0.00043211,120]
[400388683,1767490425728,199.60096764,0.00043211,120]
[400388684,1767490427336,167.64467838,0.00043211,120]
[400388685,1767490427607,161.07736983,0.00043211,120]
[400388686,1767490429340,160.2025924,0.00043211,120]
[400388687,1767490429388,154.10417481,0.00043211,120]
[400388688,1767490429874,300.41831846,0.00043211,120]
[400388689,1767490429942,431.47293341,0.00043211,120]
[400388690,1767490430572,192.15726703,0.00043211,120]
[400388691,1767490431446,206.54709228,0.00043211,120]
[400388692,1767490431707,373.87620808,0.00043211,120]
[400388693,1767490431772,177.74475865,0.00043211,120]
[400388694,1767490433401,355.75855153,0.00043211,120]
[400388695,1767490435355,165.23767584,0.00043211,120]
[400388696,1767490437020,153.43026076,0.00043211,120]
[400388697,1767490437559,432.80496356,0.00043211,120]
[400388698,1767490439468,606.98634836,0.00043211,120]
[400388699,1767490441710,290.47575666,0.00043211,120]
[400388700,1767490443137,634.27126126,0.00043211,120]
[400388701,1767490443195,205.3051157,0.00043211,120]
[400388702,1767490453035,162.0932336,0.00043211,120]
[400388703,1767490454541,163.53090905,0.00043211,120]
[400388704,1767490455042,168.40831422,0.00043211,120]
[400388705,1767490460246,195.56983313,0.00043211,60]
[400388706,1767490460959,179.83866963,0.00043211,120]
[400388707,1767490466155,207.78960628,0.00043211,120]
[400388708,1767490484632,183.7498225,0.00043211,120]
[400388709,1767490503479,1116.3821151,0.00043211,120]
[400388710,1767490510429,164.70894935,0.00043211,120]
[400388711,1767490514832,162.60554373,0.00043211,120]
[400388712,1767490515290,186.22476318,0.00043211,120]
[400388713,1767490518210,151.33590444,0.00043211,120]
[400388714,1767490520877,48500.0,0.00043211,60]
[400388715,1767490522873,150.75998978,0.00043211,120]
[400388716,1767490523887,155.77106673,0.00043211,120]
[400388718,1767490526764,48500.0,0.00043211,61]
[400388719,1767490535122,170.54171223,0.00043211,120]
[400388720,1767490537044,165.34479098,0.00043211,120]
[400388721,1767490561254,170.45562659,0.00043211,120]
[400388722,1767490561435,177.29226417,0.00043211,120]
[400388723,1767490561788,500.0,0.00043211,120]
[400388724,1767490571936,150.46285352,0.00043211,120]
[400388725,1767490584580,171.02391552,0.00043211,120]
[400388726,1767490596450,157.35605291,0.00043211,120]
[400388727,1767490615925,152.76142344,0.00043211,120]
[400388728,1767490619703,152.85632433,0.00043211,120]
[400388729,1767490622759,175.58595341,0.00043211,120]
[400388730,1767490636936,165.8397945,0.00043211,120]
[400388731,1767490637748,175.18638857,0.00043211,120]
[400388732,1767490668742,186.04905282,0.00043211,120]
[400388733,1767490671256,500.0,0.00043211,120]
[400388734,1767490671540,500.0,0.00043211,120]
[400388735,1767490671785,500.0,0.00043211,120]
[400388736,1767490672055,500.0,0.00043211,120]
[400388737,1767490672298,500.0,0.00043211,120]
[400388738,1767490672533,500.0,0.00043211,120]
[400388739,1767490672999,500.0,0.00043211,120]
[400388740,1767490673047,500.0,0.00043211,120]
[400388741,1767490673252,500.0,0.00043211,120]
[400388742,1767490673481,505.57140732,0.00043211,120]
[400388743,1767490674621,196.97728907,0.00043211,120]
[400388744,1767490675646,159.45704883,0.00043211,120]
[400388745,1767490688936,158.07492217,0.00043211,120]
[400388746,1767490689063,156.77688538,0.00043211,120]
[400388747,1767490693372,152.93340916,0.00043211,120]
[400388748,1767490707723,168.64787668,0.00043211,120]
[400388749,1767490714917,177.40751711,0.00043211,120]
[400388750,1767490752332,185.57009187,0.00043211,120]
[400388751,1767490756094,154.78727849,0.00043211,120]
[400388752,1767490765668,150.95041547,0.00043211,120]
[400388753,1767490773739,151.64449889,0.00043212,120]
[400388754,1767490773928,218.14606619,0.00043212,120]
[400388755,1767490798613,164.54223305,0.00043212,120]
[400388756,1767490805758,166.63708033,0.00043212,120]
[400388757,1767490843963,175.18263318,0.00043212,120]
[400388758,1767490845728,163.67635524,0.00043212,120]
[400388759,1767490860550,500.0,0.00043212,120]
[400388760,1767490868367,159.83144648,0.00043212,120]
[400388761,1767490872914,162.84525041,0.00043212,120]
[400388762,1767490884857,304.09937769,0.00043212,60]
[400388763,1767490893364,152.30146237,0.00043212,120]
[400388764,1767490905793,500.0,0.00043212,120]
[400388765,1767490906043,500.0,0.00043212,120]
[400388766,1767490906272,500.0,0.00043212,120]
[400388767,1767490906505,500.0,0.00043212,120]
[400388768,1767490906852,500.0,0.00043212,120]
[400388769,1767490907056,500.0,0.00043212,120]
[400388770,1767490907172,158.0567649,0.00043212,120]
[400388771,1767490907322,193.53165652,0.00043212,120]
[400388772,1767490940703,500.0,0.00043212,120]
[400388773,1767490940930,500.0,0.00043212,120]
[400388774,1767490941173,500.0,0.00043212,120]
[400388775,1767490941409,500.0,0.00043212,120]
[400388776,1767490941656,500.0,0.00043212,120]
[400388777,1767490941914,500.0,0.00043212,120]
[400388778,1767490942152,500.0,0.00043212,120]
[400388779,1767490942416,500.0,0.00043212,120]
[400388780,1767490942667,500.0,0.00043212,120]
[400388781,1767490942980,500.0,0.00043212,120]
[400388782,1767490943161,500.0,0.00043212,120]
[400388783,1767490943400,500.0,0.00043212,120]
[400388784,1767490943644,500.0,0.00043212,120]
[400388785,1767490943903,500.0,0.00043212,120]
[400388786,1767490944151,500.0,0.00043212,120]
[400388787,1767490944409,500.0,0.00043212,120]
[400388788,1767490944656,500.0,0.00043212,120]
[400388789,1767490944895,500.0,0.00043212,120]
[400388790,1767490945150,500.0,0.00043212,120]
[400388791,1767490945384,500.0,0.00043212,120]
[400388792,1767490945620,500.0,0.00043212,120]
[400388793,1767490945851,500.0,0.00043212,120]
[400388794,1767490946111,500.0,0.00043212,120]
[400388795,1767490946336,319.27730495,0.00043212,120]
[400388796,1767490996102,154.32562521,0.00043212,120]
[400388797,1767491000941,159.04161959,0.00043212,120]
[400388798,1767491023395,352.35,0.00032877,120]
[400388799,1767491023438,153.53918771,0.00043212,120]
[400388800,1767491035174,151.0322506,0.00043212,120]
[400388801,1767491065783,159.20840284,0.00043212,120]
[400388802,1767491070084,154.37802156,0.00043212,120]
[400388803,1767491161046,500.0,0.00043212,120]
[400388804,1767491195113,-174.57611349,0.00019082,10]
[400388805,1767491231322,218.84519588,0.00043212,120]
[400388806,1767491240087,-1160.24388651,0.00019082,10]
[400388807,1767491240107,-195.09072234,0.00019082,2]
[400388808,1767491240127,-388.45567692,0.00019082,2]
[400388809,1767491240146,-741.06943894,0.0002,2]
[400388810,1767491303309,243.202744,0.00043212,120]
[400388813,1767491348164,-755.03880701,0.0002,2]
[400388814,1767491348190,-1463.10173895,0.0002099,2]
[400388815,1767491348212,-250.0,0.0002099,2]
[400388816,1767491348234,-195.0,0.0002099,2]
[400388817,1767491348255,-190.8748814,0.00024,5]
[400388818,1767491348276,-151.0,0.00025294,2]
[400388819,1767491348297,-151.0,0.00025455,2]
[400388820,1767491348317,-151.0,0.00025489,2]
[400388821,1767491349619,151.0,0.00025642,2]
[400388822,1767491373932,1650.92892876,0.00043212,60]
[400388823,1767491394855,156.23060162,0.00043212,60]
[400388834,1767491432043,-151.0,0.00025886,2]
[400388835,1767491432055,-549.0,0.00026,15]
[400388836,1767491432067,-355.35,0.00026,15]
[400388837,1767491432077,-151.0,0.00026061,2]
[400388838,1767491432087,-151.0,0.00026211,2]
[400388839,1767491432097,-475.27,0.00026286,2]
[400388840,1767491432107,-206.55,0.00026359,2]
[400388841,1767491432117,-367.32592439,0.0002656,2]
[400388842,1767491432130,-107.94407561,0.0002656,2]
[400388843,1767491432139,-475.27,0.00026834,2]
[400388844,1767491432149,-164.45,0.00027108,2]
[400388845,1767491432158,-160.0,0.0003,8]
[400388846,1767491432168,-527.43887829,0.00033513,2]
[400388847,1767491432183,-231.42727271,0.00033513,2]
[400388848,1767491432194,-306.0,0.00033682,3]
[400388849,1767491432204,-1236.0,0.00033682,3]
[400388850,1767491432214,-4036.05,0.00033683,2]
[400388851,1767491432224,-1000.0,0.0003431,2]
[400388852,1767491432233,-3792.19353504,0.00035333,2]
[400388853,1767491432245,-1380.71646496,0.00035333,2]
[400388854,1767491432254,-365.30657844,0.00035616,30]
[400388855,1767491432266,-529.58610593,0.00035616,30]
[400388856,1767491432277,-64.18731563,0.00035616,30]
[400388857,1767491432287,-235.81268437,0.00035645,2]
[400388858,1767491432299,-3.17731563,0.00035645,2]
[400388859,1767491432309,-1040.331666,0.00035829,2]
[400388860,1767491432320,-70.43838471,0.00035829,2]
[400388861,1767491432337,-737.1355053,0.00035829,2]
[400388862,1767491432474,-2376.13,0.00035829,2]
[400388869,1767491438211,-1021.19015339,0.00035829,2]
[400388870,1767491438222,-4111.8359902,0.00035829,2]
[400388871,1767491438232,-3503.22024281,0.00035829,2]
[400388872,1767491438357,-3729.44527212,0.00035829,2]
[400388873,1767491438370,-822.627884,0.00035829,2]
[400388874,1767491438382,-21591.16257957,0.00035829,2]
[400388875,1767491438391,-1737.5559329,0.00035829,2]
[400388876,1767491438401,-338.5557357,0.00035893,2]
[400388877,1767491438411,-999.0,0.00035983,3]
[400388878,1767491438421,-596.04,0.0003671,30]
[400388879,1767491438431,-199.448,0.00036795,46]
[400388880,1767491438441,-514.549,0.00036795,46]
[400388881,1767491438451,-1002.0498351,0.00036795,2]
[400388882,1767491438465,-40020.04799871,0.00036795,2]
[400388883,1767491438478,-540.01220046,0.00036795,2]
[400388884,1767491438489,-8165.66750054,0.00036795,2]
[400388887,1767491440250,-3561.99998,0.00036795,2]
[400388888,1767491440534,-276.09552514,0.00036795,2]
[400388931,1767491443832,-354.17464253,0.00036795,2]
[400388932,1767491444632,-19.39734597,0.00028377,2]
[400388936,1767491446090,-131.60265403,0.00028377,2]
[400388937,1767491446101,-6769.45000387,0.00036795,2]
[400388938,1767491446113,-1829.34553817,0.00036795,2]
[400388939,1767491446142,-1065.32192759,0.00036795,2]
[400388940,1767491446158,-817.05,0.00036795,2]
[400388941,1767491446170,-2726.21303154,0.00036795,2]
[400388942,1767491446250,-1583.50562515,0.00036795,2]
[400388960,1767491466052,193.0,0.00029043,120]
[400388961,1767491466142,193.0,0.00027389,120]
[400388962,1767491466750,2500.0,0.00029043,120]
[400388963,1767491467794,289.1804665,0.00029043,120]
[400388964,1767491468981,438.12727128,0.00029043,120]
[400388965,1767491528718,300.0,0.00029043,120]
[400388966,1767491528875,322.03467922,0.00026848,120]
[400388967,1767491530325,195.0,0.00029043,120]
[400388968,1767491530421,195.0,0.00026625,120]
[400388972,1767491587180,1093.79108857,0.00029533,120]
[400388973,1767491588772,382.95753986,0.00029533,120]
[400388974,1767491627535,875.62407957,0.00043212,120]
[400388977,1767491816000,256.73981777,0.00043212,120]
[400388978,1767491923287,169.75,0.00017563,2]
[400388980,1767492006026,156.23060162,0.00043215,60]
[400388981,1767492203473,159.59897,0.00043215,61]
[400388982,1767492212340,185.905364,0.00043215,61]
[400388983,1767492333403,253.265215,0.00043215,61]
[400388984,1767492335334,184.196893,0.00043215,61]
[400388985,1767492353145,-249.23172613,0.00018487,2]
[400388986,1767492423759,293.2,0.00013699,2]
[400388987,1767492443594,500.0,0.00043215,120]
[400388988,1767492443828,500.0,0.00043215,120]
[400388989,1767492444067,500.0,0.00043215,120]
[400388990,1767492444300,500.0,0.00043215,120]
[400388991,1767492444586,500.0,0.00043215,120]
[400388992,1767492444822,500.0,0.00043215,120]
[400388993,1767492445073,500.0,0.00043215,120]
[400388994,1767492445325,500.0,0.00043215,120]
[400388995,1767492445569,500.0,0.00043215,120]
[400388996,1767492445814,497.63796424,0.00043215,120]
[400388998,1767492558397,-59.76827387,0.00018487,2]
[400388999,1767492558419,-303.00651477,0.00018487,2]
[400389000,1767492558440,-300.0,0.00018487,2]
[400389001,1767492558462,-500.0,0.00018487,2]
[400389002,1767492558485,-297.52567066,0.00018487,2]
[400389003,1767492558508,-169.75,0.00018487,2]
[400389004,1767492558530,-233.61591145,0.00019042,2]
[400389005,1767492558552,-169.75,0.00019412,2]
[400389006,1767492558575,-293.2,0.00020187,2]
[400389007,1767492558598,-250.0,0.00020336,2]
[400389008,1767492558620,-300.0,0.00020336,2]
[400389009,1767492558643,-250.0,0.00020336,2]
[400389010,1767492558671,-250.0,0.00020336,2]
[400389011,1767492558693,-300.0,0.00020336,2]
[400389012,1767492558716,-169.75,0.00020336,2]
[400389013,1767492558739,-151.0,0.00020626,2]
[400389014,1767492558761,-151.0,0.00020628,2]
[400389015,1767492558782,-151.0,0.00020628,2]
[400389016,1767492558809,-151.0,0.00020655,2]
[400389017,1767492558832,-151.0,0.00020799,2]
[400389018,1767492558856,-169.75,0.0002126,2]
[400389019,1767492558881,-1200.0,0.00021547,2]
[400389020,1767492558905,-169.75,0.00022185,2]
[400389021,1767492558929,-169.75,0.00023109,2]
[400389022,1767492558951,-1680.0,0.00023536,2]
[400389023,1767492558975,-169.75,0.00024033,2]
[400389024,1767492559252,-169.75,0.00024958,2]
[400389025,1767492559283,-185.0,0.000255,20]
[400389026,1767492559311,-169.75,0.00025882,2]
[400389027,1767492559338,-293.2,0.00026676,2]
[400389028,1767492559363,-169.75,0.00026806,2]
[400389029,1767492559394,-169.75,0.00027731,2]
[400389030,1767492559424,-169.75,0.00028655,2]
[400389031,1767492559452,-300.0,0.00029579,2]
[400389032,1767492559476,-155.0,0.00029579,2]
[400389033,1767492559501,-169.75,0.0002958,2]
[400389034,1767492559528,-169.75,0.00030504,2]
[400389035,1767492559556,-159.52,0.00031399,2]
[400389036,1767492559585,-169.75,0.00031428,2]
[400389037,1767492559609,-979.73,0.00031647,2]
[400389038,1767492559635,-3043.97,0.00031695,2]
[400389039,1767492559659,-154.72784194,0.00031707,7]
[400389040,1767492559683,-26348.1491281,0.00031711,2]
[400389041,1767492568080,-151.0,0.00020626,2]
[400389042,1767492568100,-5202.420814,0.00031711,2]
[400389043,1767492571076,-2798.302486,0.00031711,2]
[400389044,1767492572088,-2459.81706514,0.00031711,2]
[400389047,1767492632292,-151.0,0.00026773,2]
[400389048,1767492632303,-151.0,0.0002694,2]
[400389049,1767492632313,-198.76,0.00027092,2]
[400389050,1767492632323,-151.0,0.00027092,2]
[400389051,1767492632333,-412.0,0.00027092,2]
[400389052,1767492632343,-151.0,0.00027286,2]
[400389053,1767492632352,-250.0,0.00029801,2]
[400389054,1767492632362,-115.63715594,0.00030303,2]
[400389055,1767492632379,-486.87103,0.00030303,2]
[400389056,1767492632399,-1420.24896426,0.00030303,2]
[400389057,1767492632409,-306.0,0.0003171,2]
[400389058,1767492632423,-338.0,0.0003171,3]
[400389059,1767492632434,-32.75103574,0.00031711,2]
[400389060,1767492632446,-446.88,0.00031711,2]
[400389061,1767492632458,-612.07,0.00031711,2]
[400389062,1767492632508,-1552.07197154,0.00031711,2]
[400389063,1767492632520,-3473.71911497,0.00031711,2]
[400389064,1767492632536,-1944.01653403,0.00031711,2]
[400389072,1767492638374,-591.35187019,0.00031711,2]
[400389073,1767492638387,-1266.01117204,0.00031711,2]
[400389074,1767492638530,-4578.56880825,0.00031711,2]
[400389075,1767492638540,-150.0,0.00031803,2]
[400389076,1767492638550,-200.0,0.00031902,2]
[400389077,1767492638559,-169.75,0.00032353,2]
[400389078,1767492638569,-500.0,0.00032575,2]
[400389079,1767492638579,-169.89,0.00032878,2]
[400389080,1767492638589,-293.2,0.00033165,2]
[400389081,1767492638598,-169.75,0.00033277,2]
[400389082,1767492638607,-2022.7571502,0.00033424,2]
[400389083,1767492638618,-166.66,0.00033772,30]
[400389084,1767492638627,-169.75,0.00034201,2]
[400389085,1767492638637,-166.66,0.00034483,30]
[400389087,1767492638647,-1551.76,0.00034551,2]
[400389089,1767492638657,-335.33,0.00034638,30]
[400389091,1767492638668,-1360.92,0.00034899,14]
[400389092,1767492638678,-10000.0,0.000349,30]
[400389093,1767492638688,-169.75,0.00035126,2]
[400389094,1767492638697,-500.0,0.00035163,42]
[400389095,1767492638707,-150.0,0.00035163,42]
[400389096,1767492638717,-150.0,0.00035163,42]
[400389097,1767492638727,-500.0,0.00035163,42]
[400389098,1767492638736,-500.0,0.00035163,42]
[400389100,1767492638746,-500.0,0.00035163,2]
[400389102,1767492638755,-1360.92,0.00035173,14]
[400389104,1767492638766,-166.66,0.00035194,30]
[400389106,1767492638775,-500.0,0.000353,42]
[400389108,1767492638786,-150.0,0.000353,42]
[400389109,1767492638795,-169.96636544,0.000353,42]
[400389111,1767492638806,-522.29682151,0.000353,42]
[400389113,1767492638815,-500.0,0.000353,42]
[400389115,1767492638825,-500.0,0.000353,2]
[400389117,1767492638835,-500.0,0.000353,42]
[400389119,1767492638846,-160.64171189,0.000353,42]
[400389121,1767492638856,-204.03831826,0.000353,42]
[400389123,1767492638866,-278.0881863,0.000353,42]
[400389125,1767492638876,-241.28872877,0.000353,42]
[400389128,1767492638891,-500.0,0.00035426,20]
[400389130,1767492638901,-500.0,0.00035437,42]
[400389132,1767492638911,-268.9725276,0.00035437,42]
[400389133,1767492638921,-500.0,0.00035437,42]
[400389134,1767492638931,-500.0,0.00035437,2]
[400389135,1767492638941,-500.0,0.00035437,42]
[400389136,1767492638951,-500.0,0.00035437,42]
[400389137,1767492638962,-191.63,0.00035437,42]
[400389138,1767492638972,-595.319,0.00035437,42]
[400389139,1767492638982,-1360.92,0.00035447,14]
[400389140,1767492638993,-500.0,0.00035574,42]
[400389141,1767492639004,-256.93452868,0.00035574,42]
[400389142,1767492639013,-178.9771966,0.00035574,2]
[400389143,1767492639023,-581.66985476,0.00035574,42]
[400389145,1767492639033,-258.16088351,0.00035711,42]
[400389146,1767492639047,-500.0,0.00035711,42]
[400389148,1767492639056,-1360.92,0.00035721,14]
[400389150,1767492639067,-150.0,0.00035831,14]
[400389152,1767492639076,-500.0,0.00035831,14]
[400389154,1767492639086,-150.0,0.00035831,14]
[400389156,1767492639097,-159.12002011,0.00035831,14]
[400389158,1767492639107,-150.0,0.00035833,15]
[400389160,1767492639116,-500.0,0.00035833,15]
[400389162,1767492639126,-500.0,0.00035833,15]
[400389164,1767492639135,-150.0,0.00035833,15]
[400389166,1767492639145,-150.0,0.00035833,15]
[400389168,1767492639159,-150.0,0.00035833,15]
[400389169,1767492639168,-500.0,0.00035833,15]
[400389170,1767492639178,-500.0,0.00035833,15]
[400389171,1767492639188,-500.0,0.00035833,15]
[400389172,1767492639198,-246.09443958,0.00035833,15]